[Event "Italian-ch Teams-B 2022"]
[Site "Montesilvano"]
[Date "2022.04.22"]
[Round "6.4"]
[White "Budyi, Danylo"]
[Black "Andreoni, Giuseppe"]
[Result "0-1"]
[ECO "E51"]
[WhiteElo "1817"]
[BlackElo "2158"]
[Annotator "TA"]
[PlyCount "66"]
[EventDate "2022.04.19"]
[EventType "team-tourn"]
[EventCountry "ITA"]
[SourceTitle "playchess.com"]
[Source "ChessBase"]
[SourceQuality "1"]
[TimeControl "40/5400+30:1800+30"]

{[%evp 13,66,0,-4,0,8,10,16,-17,-17,-15,-11,-23,-8,-10,4,-18,-19,-122,-106,-129,-120,-170,-168,-185,-131,-151,-144,-133,-135,-135,-124,-121,-120,-107,-58,-138,-130,-116,-128,-202,-180,-183,-193,-386,-388,-448,-253,-253,-253,-253,-253,-253,-253,-573,-573]} 1. d4 {[%emt 0:01:08]} Nf6 {[%emt 0:00:06]} 2. c4 {[%emt 0:00:08]} e6 {[%emt 0:00:07]} 3. Nc3 {[%emt 0:00:25]} Bb4 {[%emt 0:00:05]} 4. Nf3 {[%emt 0:00:05]} b6 {[%emt 0:00:23]} 5. Bd2 {[%emt 0:00:11]} O-O {[%emt 0:02:53]} 6. e3 {[%emt 0:00:33]} d5 {[%emt 0:04:04]} 7. cxd5 {[%emt 0:00:40]} exd5 {[%emt 0:00:16]} 8. Bd3 {[%emt 0:00:09] E51: Nimzo-Indian: Rubinstein: 4...0-0 5 Nf3 d5.} Re8 {[%emt 0:03:02]} 9. O-O {[%emt 0:04:04]} Bb7 {[%emt 0:01:43]} 10. a3 {[%emt 0:20:37] The position is equal.} Bd6 {[%emt 0:08:16] [#]} 11. Nb5 $146 {[%emt 0:07:54]} ({Predecessor:} 11. b4 a6 12. Qc2 Ne4 13. b5 g6 14. bxa6 Nxa6 15. Rfd1 Nxd2 16. Qxd2 c5 17. Bb5 Re6 18. dxc5 Nxc5 {½-½ (38) Neto,H (2567)-Zajontz,R (2500) ICCF email 2020}) 11... Bf8 {[%emt 0:01:02]} 12. b4 {[%emt 0:11:11]} c6 {[%emt 0:06:07]} (12... a6 $5 13. Nc3 Nbd7 $11) 13. Nc3 {[%emt 0:00:30]} Nbd7 {[%emt 0:00:21]} 14. Qb3 {[%emt 0:02:23]} Ne4 {[%emt 0:09:57]} 15. Bxe4 {[%emt 0:08:05]} (15. a4 $11 {remains equal.}) 15... dxe4 $17 {[%emt 0:00:39]} 16. Ne1 {[%emt 0:00:09]} a5 {[%emt 0:32:26] And now ...axb4 would win.} 17. bxa5 {[%emt 0:05:41]} (17. Nc2 $17 {keeps fighting.}) 17... Ba6 $19 {[%emt 0:00:15]} ({Worse is} 17... Rxa5 {[#]} 18. Nxe4 $1 Ra8 19. f3 $11) 18. axb6 {[%emt 0:00:49]} Nxb6 {[%emt 0:03:08]} (18... Bxf1 19. b7 Rb8 20. Kxf1 $17) (18... Qxb6 $19 19. Qxb6 Nxb6) 19. Nc2 $17 {[%emt 0:00:34]} Bc4 {[%emt 0:00:56]} 20. Qb1 {[%emt 0:00:59]} Bxf1 {[%emt 0:00:13] Black is much more active. The white rooks are badly placed.} 21. Qxf1 {[%emt 0:00:07]} c5 {[%emt 0:04:25]} 22. a4 {[%emt 0:02:45]} cxd4 {[%emt 0:00:07]} 23. Nxd4 {[%emt 0:00:38]} Qc8 {[%emt 0:03:50]} (23... Bc5 $17 24. Nb3 Bb4) 24. Rc1 {[%emt 0:21:28]} ({White should play} 24. Qb1 $15 Nc4 25. Be1) 24... Qa6 {[%emt 0:02:30]} 25. Ndb5 {[%emt 0:02:51]} Red8 {[%emt 0:02:45]} ({Reject} 25... Nxa4 $6 26. Ra1 $11) 26. Qe1 {[%emt 0:08:01]} (26. Be1 $17 {was necessary.}) 26... Qb7 $19 {[%emt 0:04:13]} (26... Nxa4 27. Nc7 Qd6 28. Nxa8 $15) 27. Rb1 {[%emt 0:00:46]} Nxa4 {[%emt 0:01:43]} 28. Nd6 $2 {[%emt 0:01:00] [#]} (28. Nd4 Qd7 29. Nxe4) 28... Qd7 {[%emt 0:01:38]} 29. Ndxe4 {[%emt 0:00:34]} f5 {[%emt 0:01:03]} (29... Qd3 $142 30. Qf1 Nxc3 31. Qxd3 Rxd3 32. Bxc3 f5 33. Bxg7 fxe4) 30. Nxa4 {[%emt 0:00:12]} Rxa4 {[%emt 0:00:46][%cal Ba8a4,Ba4c4,Bc4c3][%mdl 32]} ({And not} 30... Qxa4 31. Ng5 $17) 31. Nc3 {[%emt 0:00:05]} Rc4 {[%emt 0:00:27]} 32. Qe2 {[%emt 0:01:13]} Qd3 {[%emt 0:00:27]} 33. Kf1 $2 {[%emt 0:00:30]} (33. Qxd3 {was the crucial defense.} Rxd3 34. Be1) 33... Rxc3 {[%emt 0:00:48] Weighted Error Value: White=0.50/Black=0.15 (very precise)} 0-1

[Event "Italian-ch Teams-B 2022"]
[Site "Montesilvano"]
[Date "2022.04.23"]
[Round "7.1"]
[White "Caprio, Guido"]
[Black "Lazic, Miroljub"]
[Result "1-0"]
[ECO "A55"]
[WhiteElo "2426"]
[BlackElo "2322"]
[Annotator "TA"]
[PlyCount "66"]
[EventDate "2022.04.19"]
[EventType "team-tourn"]
[EventCountry "ITA"]
[SourceTitle "playchess.com"]
[Source "ChessBase"]
[SourceQuality "1"]
[TimeControl "40/5400+30:1800+30"]

{[%evp 15,66,50,57,41,66,60,42,47,75,80,80,78,81,81,83,73,82,79,93,64,131,133,131,127,129,125,126,129,127,131,140,149,146,157,146,156,152,143,161,162,177,131,170,150,277,287,302,314,316,320,392,401,770]} 1. d4 {[%emt 0:00:05]} d6 {[%emt 0:00:11]} 2. Nf3 {[%emt 0:00:12]} Nf6 {[%emt 0:00:20]} 3. c4 {[%emt 0:00:05]} Nbd7 {[%emt 0:00:11]} 4. Nc3 {[%emt 0:00:09]} e5 {[%emt 0:00:02]} 5. e4 {[%emt 0:00:09]} c6 {[%emt 0:00:24]} 6. Be2 {[%emt 0:00:05]} Be7 {[%emt 0:00:05]} 7. O-O {[%emt 0:00:04]} O-O {[%emt 0:00:03]} 8. Rb1 {[%emt 0:01:52]} a5 {[%emt 0:10:01]} 9. Qc2 {[%emt 0:00:04] A55: Old Indian Defence with Nf3 and e4.} Qe8 {[%emt 0:01:03] [#]} 10. Rd1 $146 {[%emt 0:04:14] &Bianco is more active.} ({Predecessor:} 10. b3 Bd8 11. Ba3 exd4 12. Nxd4 Nc5 13. Bf3 Qe5 14. Rbd1 Bc7 15. g3 Re8 16. Rfe1 {½-½ (26) Luczak,A (2405)-Hausner,I (2460) St Johan ID Haide 1981}) 10... Bd8 {[%emt 0:04:03]} 11. b3 {[%emt 0:00:24] White is slightly better.} exd4 {[%emt 0:05:03]} 12. Nxd4 {[%emt 0:00:06]} ({Much weaker is} 12. Rxd4 Nc5 $11) 12... Nc5 {[%emt 0:01:16][%cal Rf6e4]} 13. f3 {[%emt 0:03:15]} Bb6 {[%emt 0:08:59]} 14. Kh1 {[%emt 1:26:46]} Qe5 {[%emt 0:26:05][%cal Oc5e4]} 15. Be3 {[%emt 0:00:00]} Re8 {[%emt 0:01:42]} 16. Qd2 {[%emt 0:00:00]} Qe7 {[%emt 0:06:28][%cal Od6d5]} 17. Bf4 {[%emt 0:00:00]} h6 {[%emt 0:01:54]} (17... Nh5 $14) 18. Nc2 $16 {[%emt 0:00:00]} Bc7 {[%emt 0:04:50]} 19. Bxd6 {[%emt 0:00:00]} Bxd6 {[%emt 0:00:01]} 20. Qxd6 {[%emt 0:00:00]} Qxd6 {[%emt 0:00:37]} 21. Rxd6 {[%emt 0:00:00]} Be6 {[%emt 0:01:40]} 22. Kg1 {[%emt 0:00:00][%cal Bh1g1,Bg1f2,Bf2e3][%mdl 32]} g5 {[%emt 0:00:54]} 23. Kf2 {[%emt 0:00:00]} Red8 {[%emt 0:01:09]} 24. Rxd8+ {[%emt 0:00:00]} Rxd8 {[%emt 0:00:01]} 25. Ke3 {[%emt 0:00:00]} Kf8 {[%emt 0:00:31]} 26. Nd4 {[%emt 0:00:00]} Nfd7 {[%emt 0:02:30]} 27. g3 {[%emt 0:00:00][%cal Bg2g3,Bg3g4][%mdl 32]} Ke7 {[%emt 0:00:12]} 28. Rh1 {[%emt 0:00:00]} ({White should play} 28. a3 $18) 28... Rg8 {[%emt 0:03:38]} 29. h4 {[%emt 0:00:00]} gxh4 {[%emt 0:00:04]} (29... Ne5 $16 {was worth a try.} 30. hxg5 hxg5) 30. g4 $18 {[%emt 0:00:00]} ({Weaker is} 30. gxh4 Ne5 31. a3 Rg2 $16) ({Resist} 30. Rxh4 $6 Rxg3 31. Rxh6 Rh3 32. Rxh3 Bxh3 $16) 30... Kf6 {[%emt 0:09:22]} 31. Rxh4 {[%emt 0:00:00]} Kg7 {[%emt 0:00:02]} 32. f4 {[%emt 0:00:00]} Nb6 {[%emt 0:01:42]} 33. Rh5 {[%emt 0:00:00]} Rh8 {[%emt 0:00:46] Weighted Error Value: White=0.04 (flawless) /Black=0.19 (very precise)} (33... Nbd7 $142 34. g5 hxg5 35. Rxg5+ Kf8 36. Rxg8+ Kxg8) 1-0

[Event "Italian-ch Teams-B 2022"]
[Site "Montesilvano"]
[Date "2022.04.23"]
[Round "7.1"]
[White "Aghayev, Miragha"]
[Black "Drasko, Milan"]
[Result "1/2-1/2"]
[ECO "E27"]
[WhiteElo "2398"]
[BlackElo "2398"]
[Annotator "TA"]
[PlyCount "28"]
[EventDate "2022.04.19"]
[EventType "team-tourn"]
[EventCountry "ITA"]
[SourceTitle "playchess.com"]
[Source "ChessBase"]
[SourceQuality "1"]
[TimeControl "40/5400+30:1800+30"]

{[%evp 10,28,-8,-8,31,25,62,60,50,44,78,38,37,18,62,8,17,0,0,-9,-8]} 1. d4 {[%emt 0:06:40]} e6 {[%emt 0:00:16]} 2. c4 {[%emt 0:00:07]} Nf6 {[%emt 0:00:23]} 3. Nc3 {[%emt 0:00:07]} Bb4 {[%emt 0:00:29]} 4. f3 {[%emt 0:05:50]} O-O {[%emt 0:13:11]} 5. a3 {[%emt 0:02:14]} Bxc3+ {[%emt 0:03:37]} 6. bxc3 {[%emt 0:01:04]} c6 {[%emt 0:16:03] E27: Nimzo-Indian: Sämisch: 5...0-0 6 f3.} 7. e4 {[%emt 0:08:08]} d5 {[%emt 0:00:22]} 8. e5 {[%emt 0:04:29]} Nfd7 {[%emt 0:00:09] [#] White is slightly better.} 9. f4 $146 {[%emt 0:08:09]} ({Predecessor:} 9. cxd5 cxd5 10. Bd3 b6 11. Qe2 Qc7 12. Bd2 a5 13. f4 Ba6 14. Nf3 Bxd3 15. Qxd3 {0-1 (31) Viviani,A (2248)-Pulvett Marin,D (2444) Chess.com INT 2017}) 9... b6 {[%emt 0:01:58]} 10. Bd3 {[%emt 0:12:22]} Ba6 {[%emt 0:07:08]} 11. Nf3 {[%emt 0:09:12][%cal Od3h7] [#] Threatens to win with Bxh7+!} f5 {[%emt 0:17:44]} 12. exf6 {[%emt 0:05:20] &Bianco is more active.} (12. Qe2 $14) 12... Nxf6 $11 {[%emt 0:01:25] The position is equal.} 13. Ne5 {[%emt 0:00:41]} c5 {[%emt 0:07:24]} 14. dxc5 {[%emt 0:06:33]} Nbd7 {[%emt 0:13:21] Weighted Error Value: White=0.19 (very precise) /Black=0.20 (precise)} 1/2-1/2

[Event "Italian-ch Teams-B 2022"]
[Site "Montesilvano"]
[Date "2022.04.23"]
[Round "7.1"]
[White "Formento, Paolo"]
[Black "Rombaldoni, Denis"]
[Result "0-1"]
[ECO "E95"]
[WhiteElo "2336"]
[BlackElo "2485"]
[Annotator "TA"]
[PlyCount "102"]
[EventDate "2022.04.19"]
[EventType "team-tourn"]
[EventCountry "ITA"]
[SourceTitle "playchess.com"]
[Source "ChessBase"]
[SourceQuality "1"]
[TimeControl "40/5400+30:1800+30"]

{[%evp 21,101,39,52,54,71,69,81,72,85,70,81,70,72,66,71,-102,-95,-181,-188,-175,-166,-193,-198,-250,-184,-190,-125,-219,-222,-197,-125,-233,-213,-232,-232,-258,-252,-272,-235,-259,-193,-212,-176,-231,-133,-231,-219,-213,-171,-180,-160,-156,-147,-174,-182,-174,-186,-182,-178,-172,-177,-244,-235,-337,-325,-522,-333,-677,-272,-291,-265,-888,-862,-952,-939,-841,-832,-787,-698,-29992,-29993,-29999]} 1. d4 {[%emt 0:14:57]} Nf6 {[%emt 0:00:25]} 2. c4 {[%emt 0:00:41]} d6 {[%emt 0:00:15]} 3. Nf3 {[%emt 0:00:25]} Nbd7 {[%emt 0:00:16]} 4. Nc3 {[%emt 0:00:29]} e5 {[%emt 0:00:14]} 5. e4 {[%emt 0:00:06]} g6 {[%emt 0:03:58]} 6. Be2 {[%emt 0:00:54]} Bg7 {[%emt 0:00:25]} 7. O-O {[%emt 0:00:20]} O-O {[%emt 0:00:14]} 8. Re1 {[%emt 0:00:52]} Re8 {[%emt 0:09:01]} 9. Bf1 {[%emt 0:02:58]} exd4 {[%emt 0:00:31]} 10. Nxd4 {[%emt 0:00:12]} Nc5 {[%emt 0:00:04] 10...c6 is the fancy move.} 11. f3 {[%emt 0:00:20]} a5 {[%emt 0:04:24]} 12. Ndb5 {[%emt 0:03:16] E95: King's Indian: Classical: 7...Nbd7 8 Re1.} Bd7 {[%emt 0:13:06]} 13. Be3 {[%emt 0:01:41]} h5 {[%emt 0:08:17]} 14. Qd2 {[%emt 0:13:01] White is better.} Ne6 {[%emt 0:02:12] [#]} 15. Rac1 $146 {[%emt 0:04:11]} ({Predecessor:} 15. g3 Bc6 16. Bg2 Nd7 17. f4 Nec5 18. Bf2 b6 19. Rad1 Qb8 20. Nd5 Bxb5 21. cxb5 {½-½ (58) Jankovskis,G (2325)-Boehle,L (2345) Wuerzburg 1993}) 15... Qb8 {[%emt 0:01:16]} 16. h3 {[%emt 0:15:42]} Bc6 {[%emt 0:10:45]} 17. Nd5 {[%emt 0:02:50]} Qd8 {[%emt 0:14:34]} 18. Ndxc7 $2 {[%emt 0:24:25]} Nxc7 $17 {[%emt 0:01:03]} 19. Bb6 {[%emt 0:00:19]} (19. Nxd6 $17 Re7 20. c5) 19... Bxb5 $19 {[%emt 0:07:15]} 20. cxb5 {[%emt 0:00:22]} Re7 {[%emt 0:01:46]} 21. Rc2 {[%emt 0:08:00]} Nfe8 {[%emt 0:01:33]} 22. a4 {[%emt 0:01:05]} (22. Bc4 $142) 22... Qd7 {[%emt 0:03:09]} 23. Bc4 {[%emt 0:00:08]} Ne6 {[%emt 0:04:41]} ({Black should play} 23... d5 $19 24. Bb3 dxe4 25. Rxe4 Ne6 26. Bxe6 fxe6 27. Qxd7 Rxd7 28. Rxe6 Kf7) 24. Bxa5 {[%emt 0:02:07]} (24. b3 $17) 24... Bd4+ {[%emt 0:03:25]} 25. Kf1 {[%emt 0:00:26]} N8g7 {[%emt 0:00:42]} (25... Be5 $19 {...Nd4 is the strong threat.} 26. b4 N8g7) 26. h4 {[%emt 0:01:02]} (26. b3 $17) 26... b6 {[%emt 0:00:13]} 27. Bb4 {[%emt 0:00:38]} Rxa4 {[%emt 0:00:54]} 28. b3 {[%emt 0:00:12]} Ra7 {[%emt 0:01:20]} 29. Rd1 {[%emt 0:00:59]} Re8 {[%emt 0:02:11][%cal Od6d5]} 30. g3 {[%emt 0:00:18]} Qe7 {[%emt 0:00:50]} 31. Bd5 {[%emt 0:00:28]} Rd8 {[%emt 0:02:35]} 32. Rc6 {[%emt 0:00:42]} (32. f4 $142) 32... Rc7 {[%emt 0:00:10]} (32... Kh7 $19 33. Kg2 f5 34. Bxe6 Nxe6 35. exf5 gxf5) 33. Rdc1 {[%emt 0:00:37]} (33. f4 $17 {was necessary.}) 33... Rxc6 {[%emt 0:01:01]} 34. bxc6 {[%emt 0:00:18]} b5 {[%emt 0:00:30]} 35. c7 {[%emt 0:01:07]} Rc8 {[%emt 0:00:02]} 36. Ba5 {[%emt 0:00:05]} Qf6 {[%emt 0:02:41]} 37. f4 {[%emt 0:01:16] [#] Threatens to win with Bb7.} Ne8 $1 {[%emt 0:01:12][%cal Re6c7]} 38. Bb7 {[%emt 0:01:21]} Rxc7 {[%emt 0:00:04]} 39. Bxc7 {[%emt 0:00:05]} N8xc7 {[%emt 0:00:11]} ({And not} 39... N6xc7 40. Kg2 $17) 40. b4 {[%emt 0:01:00]} Bb6 {[%emt 0:02:07]} 41. Kg2 {[%emt 0:20:45]} (41. Rd1 $142) 41... Nd4 {[%emt 0:16:14]} 42. Qa2 {[%emt 0:01:31]} (42. f5 $142) 42... Kg7 {[%emt 0:01:14]} 43. Bd5 $2 {[%emt 0:03:58]} (43. Rf1) 43... Qe7 {[%emt 0:00:37]} 44. Rd1 $2 {[%emt 0:00:49]} (44. Rc3) 44... Kg8 {[%emt 0:09:44]} (44... Nxd5 $142 45. Qxd5 Nc2) 45. Rd2 {[%emt 0:02:08]} Qd7 {[%emt 0:00:32]} 46. Qa1 $2 {[%emt 0:01:19]} (46. Bb3) 46... Nxd5 {[%emt 0:01:11]} 47. Qa8+ {[%emt 0:00:15] [#]} Kg7 $1 {[%emt 0:00:26]} 48. Qxd5 {[%emt 0:00:40]} Qg4 {[%emt 0:00:05] ( -> ...Qf3+)} 49. Rf2 {[%emt 0:02:22] Inhibits Qf3+.} Ne2 {[%emt 0:01:06]} 50. Rf3 {[%emt 0:00:13]} Ng1 {[%emt 0:00:14][%csl Gg1][%cal Rg4h3]} 51. Rd3 {[%emt 0:01:29]} Qh3# {[%emt 0:00:15] Weighted Error Value: White=0.73/Black=0.35} 0-1

[Event "Italian-ch Teams-B 2022"]
[Site "Montesilvano"]
[Date "2022.04.23"]
[Round "7.1"]
[White "Podetti, Davide"]
[Black "Mastrovasilis, Dimitrios"]
[Result "0-1"]
[ECO "B13"]
[WhiteElo "2223"]
[BlackElo "2618"]
[Annotator "TA"]
[PlyCount "46"]
[EventDate "2022.04.19"]
[EventType "team-tourn"]
[EventCountry "ITA"]
[SourceTitle "playchess.com"]
[Source "ChessBase"]
[SourceQuality "1"]
[TimeControl "40/5400+30:1800+30"]

{[%evp 11,46,16,10,12,12,17,17,12,9,13,28,28,28,0,0,-7,-5,0,0,-10,-11,-274,-270,-318,-325,-320,-315,-317,-317,-441,-432,-401,-413,-414,-387,-958,-934]} 1. e4 {[%emt 0:00:02]} c6 {[%emt 0:03:03]} 2. d4 {[%emt 0:01:13]} d5 {[%emt 0:00:18]} 3. exd5 {[%emt 0:00:48]} cxd5 {[%emt 0:00:11]} 4. Bd3 {[%emt 0:00:09]} Nc6 {[%emt 0:00:09]} 5. c3 {[%emt 0:00:07]} Qc7 {[%emt 0:00:09]} 6. Ne2 {[%emt 0:02:18]} Bg4 {[%emt 0:00:51]} 7. O-O {[%emt 0:03:09] B13: Caro-Kann: Exchange Variation and Panov-Botvinnik Attack.} e6 {[%emt 0:00:28]} 8. Qe1 {[%emt 0:01:07]} Nf6 $1 {[%emt 0:00:38][%mdl 4] outshines the older 8...Bxe2.} 9. f3 {[%emt 0:07:51] The position is equal.} Bh5 $1 {[%emt 0:00:31]} 10. Qh4 {[%emt 0:01:02] aiming for Nf4.} Bg6 {[%emt 0:00:26]} 11. Bxg6 {[%emt 0:02:13]} fxg6 {[%emt 0:00:07]} 12. Nf4 {[%emt 0:00:56][%cal Of4g6] Strongly threatening Nxg6!} (12. Re1 $5 {[%cal Re2f4]}) 12... Kf7 {[%emt 0:00:40]} 13. Re1 {[%emt 0:03:16]} e5 {[%emt 0:07:06]} 14. Nd3 {[%emt 0:20:14][%cal Rd4e5] [#]} ({But not} 14. Nxg6 Kxg6 15. Qg3+ (15. dxe5 Nxe5 16. Qg3+ Kf7 $17) 15... Kf7 16. dxe5 Qb6+ 17. Be3 {[#]} Bc5 $1 18. Bxc5 Qxc5+ 19. Kh1 Nh5 20. e6+ Kg8 $17) 14... Re8 $146 {[%emt 0:30:26]} ({Predecessor:} 14... Bd6 15. dxe5 Nxe5 16. Nxe5+ Bxe5 17. Be3 Rhe8 18. Nd2 Re7 19. Bd4 Rae8 20. Bxe5 Rxe5 21. Rxe5 Qxe5 {0-1 (56) Zierk,S (2499)-Grabinsky,A (2461) Chess.com INT 2020}) 15. Be3 {[%emt 0:13:17]} Bd6 {[%emt 0:10:56]} 16. dxe5 $2 {[%emt 0:06:49][%mdl 8192] [#] This move loses the game for White.} (16. Na3 $11 a6 17. Nc2) 16... Nxe5 $19 {[%emt 0:00:52]} 17. Qd4 {[%emt 0:13:48]} Nxd3 {[%emt 0:11:48]} 18. Qxd3 {[%emt 0:00:29]} Bxh2+ {[%emt 0:00:24]} 19. Kf1 {[%emt 0:00:17]} Bg3 {[%emt 0:00:19]} ({Inferior is} 19... Qg3 20. Nd2 $17) 20. Bf2 {[%emt 0:02:36]} Bxf2 {[%emt 0:02:15]} 21. Kxf2 {[%emt 0:00:10]} Rxe1 {[%emt 0:04:33]} 22. Kxe1 {[%emt 0:00:13]} Re8+ {[%emt 0:00:35]} 23. Kf1 $2 {[%emt 0:00:25]} (23. Kd1) 23... Qh2 {[%emt 0:01:00] Weighted Error Value: White=0.71/Black=0.02 (flawless)} 0-1

[Event "Italian-ch Teams-B 2022"]
[Site "Montesilvano"]
[Date "2022.04.23"]
[Round "7.2"]
[White "David, Alberto"]
[Black "Trabattoni, Franco"]
[Result "1/2-1/2"]
[ECO "B38"]
[WhiteElo "2545"]
[BlackElo "2230"]
[Annotator "TA"]
[PlyCount "61"]
[EventDate "2022.04.19"]
[EventType "team-tourn"]
[EventCountry "ITA"]
[SourceTitle "playchess.com"]
[Source "ChessBase"]
[SourceQuality "1"]
[TimeControl "40/5400+30:1800+30"]

{[%evp 28,61,54,54,55,26,28,0,0,0,25,-9,33,33,33,16,24,0,28,22,22,16,35,35,35,23,31,5,12,0,0,0,17,0,0,0]} 1. e4 {[%emt 0:00:13]} c5 {[%emt 0:00:09]} 2. Nf3 {[%emt 0:00:06]} g6 {[%emt 0:00:16]} 3. c4 {[%emt 0:00:45]} Bg7 {[%emt 0:00:32]} 4. d4 {[%emt 0:00:08]} cxd4 {[%emt 0:00:39]} 5. Nxd4 {[%emt 0:00:05]} Nc6 {[%emt 0:00:04]} 6. Be3 {[%emt 0:00:18]} Nf6 {[%emt 0:00:23]} 7. Nc3 {[%emt 0:00:04]} d6 {[%emt 0:00:11]} 8. Be2 {[%emt 0:00:11]} O-O {[%emt 0:00:12]} 9. O-O {[%emt 0:01:07]} Bd7 {[%emt 0:00:06]} 10. Qd2 {[%emt 0:00:32]} Nxd4 {[%emt 0:00:12]} 11. Bxd4 {[%emt 0:00:06]} Bc6 {[%emt 0:00:05]} 12. f3 {[%emt 0:00:11]} a5 {[%emt 1:33:41]} 13. b3 {[%emt 0:01:54]} Nd7 {[%emt 0:00:00]} 14. Be3 {[%emt 0:00:11]} Nc5 {[%emt 0:00:00]} 15. Rab1 {[%emt 0:00:25]} Be5 {[%emt 0:00:00] 15...e6 gains popularity. B38: Sicilian: Maroczy Bind with 5...Bg7 and 7...0-0.} 16. Rfc1 {[%emt 0:23:56]} e6 {[%emt 0:00:00]} 17. Bg5 {[%emt 0:01:29]} Qb6 {[%emt 0:00:00][%csl LRb3,LRe4] [#] And now ...Nxe4+ would win.} 18. Kh1 {[%emt 0:00:32] [#]} Qb4 $146 {[%emt 0:00:00]} ({Predecessor:} 18... f5 19. exf5 Rxf5 20. Be3 Raf8 21. Rf1 Qd8 22. f4 Bg7 23. Bf3 Qh4 24. Bxc6 bxc6 {0-1 (38) Li,D (2535)-Zou,C (2415) Xingtai 2019}) 19. Qe1 {[%emt 0:08:40]} Rfe8 {[%emt 0:00:00]} (19... a4 $5 {[%cal Ra4b3]}) 20. Bd2 {[%emt 0:06:36] Nb5 is the strong threat.} Qb6 {[%emt 0:00:00]} 21. Be3 {[%emt 0:01:54]} Qb4 {[%emt 0:00:00]} 22. Bd2 {[%emt 0:06:11] [#] Black must now prevent Nb5.} Qb6 {[%emt 0:00:00]} 23. Rd1 {[%emt 0:09:12]} Qd8 {[%emt 0:00:00]} 24. Be3 {[%emt 0:03:33]} Qf6 {[%emt 0:00:00]} 25. Nb5 {[%emt 0:01:30]} Bxb5 {[%emt 0:00:00]} 26. cxb5 {[%emt 0:00:30]} b6 {[%emt 0:00:00]} 27. Qf2 {[%emt 0:09:23] Black should prevent f4.} Bf4 {[%emt 0:00:00] The position is equal.} 28. Bd4 {[%emt 0:04:54]} Be5 {[%emt 0:00:00]} 29. Be3 {[%emt 0:05:03]} Bf4 {[%emt 0:00:00]} 30. Bd4 {[%emt 0:06:31]} Be5 {[%emt 0:00:00]} 31. Be3 {[%emt 0:03:36] Weighted Error Value: White=0.12 (very precise) /Black=0.05 (flawless)} 1/2-1/2